[Event "EYCC Girls-U18 2019"]
[Site "Bratislava"]
[Date "2019.08.09"]
[Round "8.7"]
[White "Radeva, Viktoria"]
[Black "Redondo Benavente, Ana"]
[Result "1-0"]
[ECO "B32"]
[WhiteElo "2247"]
[BlackElo "2176"]
[Annotator "NA"]
[PlyCount "107"]
[EventDate "2019.08.02"]
[EventType "swiss"]
[EventCountry "SVK"]
[SourceTitle "playchess.com"]
[Source "ChessBase"]
[SourceQuality "1"]
[TimeControl "40/5400+30:1800+30"]

1. e4 {[%emt 0:00:00]} c5 {[%emt 0:00:00]} 2. Nf3 {[%emt 0:00:00]} Nc6 {[%emt 0:00:00]} 3. d4 cxd4 {[%emt 0:00:10]} 4. Nxd4 {[%emt 0:00:00]} e5 {[%emt 0:00:19]} 5. Nb5 {[%emt 0:00:42]} a6 {[%emt 0:00:20]} 6. Nd6+ {[%emt 0:01:10]} Bxd6 {[%emt 0:00:16]} 7. Qxd6 {[%emt 0:00:05]} Qe7 {[%emt 0:00:47]} 8. Qd1 {[%emt 0:17:49]} Nf6 {[%emt 0:02:57]} 9. Nc3 {[%emt 0:00:41]} d6 {[%emt 0:00:32]} 10. Bg5 {[%emt 0:07:03]} Be6 {[%emt 0:00:34]} 11. Be2 {[%emt 0:01:45]} O-O {[%emt 0:01:16]} 12. O-O {[%emt 0:01:09]} Rad8 {[%emt 0:01:28]} 13. f4 {[%emt 0:11:15]} d5 {[%emt 0:10:49]} 14. Qe1 {[%emt 0:15:28]} d4 {[%emt 0:10:44]} 15. Nd1 {[%emt 0:03:45]} h6 {[%emt 0:14:42]} 16. Bxf6 {[%emt 0:10:33]} Qxf6 {[%emt 0:00:25]} 17. f5 {[%emt 0:00:03]} Bc8 {[%emt 0:04:00]} 18. Nf2 {[%emt 0:00:22]} Qh4 {[%emt 0:15:20]} 19. g3 {[%emt 0:01:33]} Qe7 {[%emt 0:00:08]} 20. Ng4 {[%emt 0:01:22]} f6 {[%emt 0:00:37]} 21. Bc4+ {[%emt 0:02:57]} Kh7 {[%emt 0:00:02]} 22. a3 {[%emt 0:01:50]} Bd7 {[%emt 0:01:39]} 23. h4 {[%emt 0:02:08]} Be8 {[%emt 0:00:17]} 24. Nh2 {[%emt 0:00:28]} b5 {[%emt 0:05:29]} 25. Bd3 {[%emt 0:00:54]} Bf7 {[%emt 0:00:32]} 26. g4 {[%emt 0:02:59]} g5 {[%emt 0:07:34]} 27. hxg5 {[%emt 0:02:46]} hxg5 {[%emt 0:00:02]} 28. Nf3 {[%emt 0:00:19]} Bc4 {[%emt 0:03:02]} 29. Kg2 {[%emt 0:01:00]} Kg8 {[%emt 0:02:22]} 30. Rh1 {[%emt 0:00:50]} Rf7 {[%emt 0:00:31]} 31. Qe2 {[%emt 0:08:14]} Bxd3 {[%emt 0:05:38]} 32. cxd3 {[%emt 0:00:06]} Rh7 {[%emt 0:01:56]} 33. Rxh7 {[%emt 0:00:09]} Kxh7 {[%emt 0:00:08]} 34. Rc1 {[%emt 0:00:56]} Rc8 {[%emt 0:01:10]} 35. Kg3 {[%emt 0:00:49]} Kg7 {[%emt 0:00:53]} 36. Qh2 {[%emt 0:00:57]} Rh8 {[%emt 0:01:49]} 37. Qc2 {[%emt 0:00:15]} Nb8 {[%emt 0:00:58]} 38. Qc7 {[%emt 0:03:13]} Kf7 {[%emt 0:07:19]} 39. Qb6 {[%emt 0:00:32]} Rd8 {[%emt 0:01:44]} 40. Rc7 {[%emt 0:00:00]} Rd7 {[%emt 0:00:00]} 41. Rc8 {[%emt 0:06:51]} Rb7 {[%emt 0:01:09]} 42. Nxg5+ {[%emt 0:00:13]} Kg7 {[%emt 0:01:24]} 43. Ne6+ {[%emt 0:07:32]} Kh7 {[%emt 0:00:50]} 44. Qa5 {[%emt 0:03:36]} b4 {[%emt 0:03:47]} 45. axb4 {[%emt 0:00:56]} Qxb4 {[%emt 0:00:36]} 46. Qa1 {[%emt 0:00:27]} Qd2 {[%emt 0:00:53]} 47. Qh1+ {[%emt 0:00:05]} Qh6 {[%emt 0:00:07]} 48. Rh8+ {[%emt 0:00:06]} Kxh8 {[%emt 0:00:10]} 49. Qxh6+ {[%emt 0:00:04]} Kg8 {[%emt 0:00:06]} 50. Qg6+ {[%emt 0:00:10]} Kh8 {[%emt 0:00:06]} 51. Qxf6+ {[%emt 0:00:06]} Kg8 {[%emt 0:00:23]} 52. Qg6+ {[%emt 0:00:12]} Kh8 {[%emt 0:00:05]} 53. Qh6+ {[%emt 0:00:05]} Kg8 {[%emt 0:00:13]} 54. Qf8+ {[%emt 0:00:04]} 1-0

[Event "EYCC Girls-U18 2019"]
[Site "Bratislava"]
[Date "2019.08.09"]
[Round "8.8"]
[White "Kochukova, Anna"]
[Black "Cramling Bellon, Anna"]
[Result "1-0"]
[ECO "B33"]
[WhiteElo "2148"]
[BlackElo "2030"]
[Annotator "NA"]
[PlyCount "75"]
[EventDate "2019.08.02"]
[EventType "swiss"]
[EventCountry "SVK"]
[SourceTitle "playchess.com"]
[Source "ChessBase"]
[SourceQuality "1"]
[TimeControl "40/5400+30:1800+30"]

1. e4 {[%emt 0:00:00]} c5 {[%emt 0:00:00]} 2. Nf3 {[%emt 0:00:00]} e6 {[%emt 0:00:00]} 3. d4 {[%emt 0:00:00]} cxd4 4. Nxd4 {[%emt 0:00:03]} Nf6 {[%emt 0:00:00]} 5. Nc3 {[%emt 0:00:16]} Nc6 {[%emt 0:00:00]} 6. Ndb5 {[%emt 0:00:12]} d6 {[%emt 0:00:00]} 7. Bf4 {[%emt 0:00:12]} e5 {[%emt 0:00:03]} 8. Bg5 {[%emt 0:00:10]} a6 {[%emt 0:00:16]} 9. Na3 {[%emt 0:00:09]} b5 {[%emt 0:00:03]} 10. Nd5 {[%emt 0:00:14]} Be7 {[%emt 0:00:15]} 11. Bxf6 {[%emt 0:00:14]} Bxf6 {[%emt 0:00:06]} 12. c4 {[%emt 0:00:11]} b4 {[%emt 0:00:12]} 13. Nc2 {[%emt 0:00:07]} O-O {[%emt 0:00:15]} 14. h4 {[%emt 0:00:22]} a5 {[%emt 0:03:32]} 15. g3 {[%emt 0:00:36]} Be6 {[%emt 0:00:38]} 16. Bh3 {[%emt 0:00:09]} a4 {[%emt 0:01:58]} 17. Kf1 {[%emt 0:00:28]} Rb8 {[%emt 0:10:31]} 18. b3 {[%emt 0:02:36]} axb3 {[%emt 0:15:21]} 19. axb3 {[%emt 0:00:10]} Nd4 {[%emt 0:16:43]} 20. Nxd4 {[%emt 0:15:43]} exd4 {[%emt 0:00:09]} 21. Qd3 {[%emt 0:01:31]} Bxd5 {[%emt 0:07:55]} 22. exd5 {[%emt 0:07:34]} Ra8 {[%emt 0:00:23]} 23. Kg2 {[%emt 0:00:27]} Qb6 {[%emt 0:15:38]} 24. Bd7 {[%emt 0:02:50]} Ra3 {[%emt 0:03:52]} 25. Bc6 {[%emt 0:05:20]} Qa5 {[%emt 0:08:28]} 26. Rae1 {[%emt 0:08:07]} Be5 {[%emt 0:00:28]} 27. f4 {[%emt 0:10:52]} Bf6 {[%emt 0:02:36]} 28. h5 {[%emt 0:03:56]} h6 {[%emt 0:04:16]} 29. Re4 {[%emt 0:02:19]} Ra2+ {[%emt 0:00:28]} 30. Kh3 {[%emt 0:06:07]} Ra1 {[%emt 0:04:24]} 31. Rh2 {[%emt 0:04:35]} Rc1 {[%emt 0:06:07]} 32. Rhe2 {[%emt 0:03:35]} Rc3 {[%emt 0:00:06]} 33. Re8 {[%emt 0:00:38]} Rxd3 {[%emt 0:00:06]} 34. Rxf8+ {[%emt 0:00:05]} Kh7 {[%emt 0:00:07]} 35. Ree8 {[%emt 0:01:06]} g5 {[%emt 0:01:47]} 36. Rxf7+ {[%emt 0:01:08]} Bg7 {[%emt 0:00:01]} 37. Bd7 {[%emt 0:00:56]} g4+ {[%emt 0:01:09]} 38. Kh4 {[%emt 0:01:58]} 1-0

[Event "EYCC Girls-U18 2019"]
[Site "Bratislava"]
[Date "2019.08.09"]
[Round "8.9"]
[White "Palma, Maria"]
[Black "Nilssen, Ellen Fredericia"]
[Result "1-0"]
[ECO "A50"]
[WhiteElo "2137"]
[BlackElo "2155"]
[Annotator "NA"]
[PlyCount "67"]
[EventDate "2019.08.02"]
[EventType "swiss"]
[EventCountry "SVK"]
[SourceTitle "playchess.com"]
[Source "ChessBase"]
[SourceQuality "1"]
[TimeControl "40/5400+30:1800+30"]

1. d4 {[%emt 0:00:00]} Nf6 {[%emt 0:00:00]} 2. c4 {[%emt 0:00:00]} g6 {[%emt 0:00:00]} 3. f3 {[%emt 0:00:22]} Nc6 {[%emt 0:01:01]} 4. d5 {[%emt 0:01:42]} Ne5 {[%emt 0:03:23]} 5. e4 {[%emt 0:00:14]} d6 {[%emt 0:01:09]} 6. Nc3 {[%emt 0:01:03]} Bg7 {[%emt 0:01:10]} 7. f4 {[%emt 0:02:34]} Ned7 {[%emt 0:05:25]} 8. Nf3 {[%emt 0:17:51]} O-O {[%emt 0:04:38]} 9. Bd3 {[%emt 0:11:18]} Nc5 {[%emt 0:06:34]} 10. Bc2 {[%emt 0:01:07]} e6 {[%emt 0:07:13]} 11. O-O {[%emt 0:05:04]} exd5 {[%emt 0:02:26]} 12. cxd5 {[%emt 0:02:00]} c6 {[%emt 0:13:01]} 13. dxc6 {[%emt 0:14:46]} bxc6 {[%emt 0:00:04]} 14. Be3 {[%emt 0:00:13]} Qc7 {[%emt 0:05:21]} 15. e5 {[%emt 0:05:27]} Ng4 {[%emt 0:04:40]} 16. Bxc5 {[%emt 0:15:36]} dxc5 {[%emt 0:00:07]} 17. Qe2 {[%emt 0:02:18]} a5 {[%emt 0:08:10]} 18. Bd3 {[%emt 0:00:54]} Rd8 {[%emt 0:00:38]} 19. Bc4 {[%emt 0:00:48]} Qe7 {[%emt 0:02:39]} 20. Ne4 {[%emt 0:01:56]} Be6 {[%emt 0:05:26]} 21. Rac1 {[%emt 0:03:52]} Bd5 {[%emt 0:03:54]} 22. Rfe1 {[%emt 0:00:35]} Rab8 {[%emt 0:01:54]} 23. b3 {[%emt 0:01:29]} Qa7 {[%emt 0:02:31]} 24. Kh1 {[%emt 0:02:28]} Bxe4 {[%emt 0:00:08]} 25. Ng5 {[%emt 0:01:00]} Bf5 {[%emt 0:01:15]} 26. Nxf7 {[%emt 0:01:07]} Kf8 {[%emt 0:02:32]} 27. Nxd8 {[%emt 0:00:25]} Rxd8 {[%emt 0:00:06]} 28. h3 {[%emt 0:01:33]} Nh6 {[%emt 0:00:40]} 29. Rcd1 {[%emt 0:00:31]} Qe7 {[%emt 0:02:26]} 30. Rxd8+ {[%emt 0:00:23]} Qxd8 {[%emt 0:00:01]} 31. Rd1 {[%emt 0:00:23]} Qh4 {[%emt 0:00:25]} 32. Qd2 {[%emt 0:00:44]} Be4 {[%emt 0:07:04]} 33. Qd6+ {[%emt 0:01:31]} Qe7 {[%emt 0:02:50]} 34. Qb8+ {[%emt 0:00:05]} 1-0

[Event "EYCC Girls-U18 2019"]
[Site "Bratislava"]
[Date "2019.08.09"]
[Round "8.10"]
[White "Nazarova, Anastasia"]
[Black "Grigoryan, Arpine"]
[Result "1/2-1/2"]
[ECO "B13"]
[WhiteElo "2149"]
[BlackElo "1996"]
[Annotator "NA"]
[PlyCount "131"]
[EventDate "2019.08.02"]
[EventType "swiss"]
[EventCountry "SVK"]
[SourceTitle "playchess.com"]
[Source "ChessBase"]
[SourceQuality "1"]
[TimeControl "40/5400+30:1800+30"]

1. e4 {[%emt 0:00:00]} c6 {[%emt 0:00:00]} 2. d4 {[%emt 0:00:00]} d5 {[%emt 0:00:00]} 3. exd5 {[%emt 0:00:00]} cxd5 {[%emt 0:00:00]} 4. Bd3 {[%emt 0:00:00]} Nc6 {[%emt 0:00:00]} 5. c3 {[%emt 0:00:00]} Qc7 {[%emt 0:00:02]} 6. Ne2 {[%emt 0:00:04]} Bg4 {[%emt 0:00:10]} 7. O-O {[%emt 0:00:07]} e6 {[%emt 0:00:09]} 8. Qe1 {[%emt 0:00:09]} Nf6 {[%emt 0:00:17]} 9. f3 {[%emt 0:01:14]} Bh5 {[%emt 0:00:04]} 10. Qh4 Rg8 {[%emt 0:00:06]} 11. Bf4 {[%emt 0:11:15]} Bd6 {[%emt 0:03:38]} 12. Bxd6 {[%emt 0:02:23]} Qxd6 {[%emt 0:00:05]} 13. Qf4 {[%emt 0:00:57]} Qe7 {[%emt 0:02:04]} 14. Nd2 {[%emt 0:11:11]} g5 {[%emt 0:02:57]} 15. Qe3 {[%emt 0:00:24]} Bg6 {[%emt 0:00:39]} 16. Bb5 {[%emt 0:00:45]} Nd7 {[%emt 0:16:13]} 17. Nc1 {[%emt 0:14:45]} h5 {[%emt 0:08:22]} 18. Re1 {[%emt 0:06:59]} Nb6 {[%emt 0:12:58]} 19. b4 {[%emt 0:08:01]} Rc8 {[%emt 0:07:26]} 20. Ncb3 {[%emt 0:04:49]} Nd7 {[%emt 0:03:13]} 21. a3 {[%emt 0:04:14]} Bf5 {[%emt 0:06:53]} 22. Rac1 {[%emt 0:03:17]} Nf6 {[%emt 0:04:35]} 23. Na5 {[%emt 0:08:54]} g4 {[%emt 0:03:28]} 24. f4 {[%emt 0:00:11]} Ne4 {[%emt 0:02:07]} 25. Nxe4 {[%emt 0:00:16]} Bxe4 {[%emt 0:00:05]} 26. Bxc6+ {[%emt 0:01:12]} bxc6 {[%emt 0:00:05]} 27. Nb3 {[%emt 0:00:22]} f5 {[%emt 0:03:27]} 28. Re2 {[%emt 0:03:19]} Kf7 {[%emt 0:00:16]} 29. Rb2 {[%emt 0:00:23]} Rb8 {[%emt 0:00:32]} 30. Nc5 {[%emt 0:02:22]} Rb6 {[%emt 0:03:47]} 31. Ra1 {[%emt 0:04:56]} Rgb8 {[%emt 0:01:14]} 32. Nb3 {[%emt 0:01:16]} Ra8 {[%emt 0:01:37]} 33. Re2 {[%emt 0:02:44]} h4 {[%emt 0:02:23]} 34. Na5 {[%emt 0:01:30]} h3 {[%emt 0:00:08]} 35. g3 {[%emt 0:00:06]} Rd8 {[%emt 0:01:24]} 36. Qd2 {[%emt 0:02:54]} Qd7 {[%emt 0:01:16]} 37. Re3 {[%emt 0:01:05]} Rbb8 {[%emt 0:00:29]} 38. Rae1 {[%emt 0:00:33]} Rb5 {[%emt 0:00:35]} 39. Nb3 {[%emt 0:01:33]} Qd6 {[%emt 0:00:49]} 40. Nc5 {[%emt 0:00:00]} Rbb8 {[%emt 0:00:00]} 41. Qd1 {[%emt 0:05:15]} Re8 {[%emt 0:08:33]} 42. Qe2 {[%emt 0:04:37]} Re7 {[%emt 0:02:01]} 43. a4 {[%emt 0:02:10]} Rb6 {[%emt 0:02:15]} 44. a5 {[%emt 0:00:52]} Rb5 {[%emt 0:00:22]} 45. Ra1 {[%emt 0:01:08]} Re8 {[%emt 0:01:07]} 46. Qf2 {[%emt 0:02:56]} Re7 {[%emt 0:00:51]} 47. Re2 {[%emt 0:00:53]} Re8 {[%emt 0:01:16]} 48. Rea2 {[%emt 0:01:43]} Ke7 {[%emt 0:10:53]} 49. a6 {[%emt 0:00:17]} Reb8 {[%emt 0:00:04]} 50. Nb7 {[%emt 0:02:27]} Qd7 {[%emt 0:00:07]} 51. Qe2 {[%emt 0:00:25]} Qc7 {[%emt 0:01:57]} 52. Ra5 {[%emt 0:01:11]} Rb6 {[%emt 0:00:09]} 53. Rc5 {[%emt 0:01:34]} Qd7 {[%emt 0:01:30]} 54. Ra4 {[%emt 0:05:56]} Kf6 {[%emt 0:05:57]} 55. Kf2 {[%emt 0:02:22]} Rc8 {[%emt 0:00:32]} 56. Ke3 {[%emt 0:02:03]} Rb8 {[%emt 0:00:45]} 57. Kd2 {[%emt 0:04:22]} Rc8 {[%emt 0:00:06]} 58. c4 {[%emt 0:01:52]} dxc4 {[%emt 0:00:48]} 59. Qxc4 {[%emt 0:00:03]} Bd5 {[%emt 0:00:18]} 60. Qe2 {[%emt 0:01:03]} Be4 {[%emt 0:00:10]} 61. Kc3 {[%emt 0:00:07]} Re8 {[%emt 0:01:28]} 62. Re5 {[%emt 0:00:40]} Bd5 {[%emt 0:00:05]} 63. Nc5 {[%emt 0:00:34]} Qd6 {[%emt 0:00:14]} 64. Nb7 {[%emt 0:01:41]} Qd7 {[%emt 0:00:22]} 65. Nc5 {[%emt 0:00:41]} Qd6 {[%emt 0:00:14]} 66. Nb7 {[%emt 0:00:45] Kxe5} 1/2-1/2

[Event "EYCC Girls-U18 2019"]
[Site "Bratislava"]
[Date "2019.08.09"]
[Round "8.11"]
[White "Gajcin, Marina"]
[Black "Sibajeva, Marija"]
[Result "1-0"]
[ECO "B40"]
[WhiteElo "2267"]
[BlackElo "2031"]
[Annotator "NA"]
[PlyCount "117"]
[EventDate "2019.08.02"]
[EventType "swiss"]
[EventCountry "SVK"]
[SourceTitle "playchess.com"]
[Source "ChessBase"]
[SourceQuality "1"]
[TimeControl "40/5400+30:1800+30"]

1. e4 {[%emt 0:00:00]} c5 {[%emt 0:00:00]} 2. Nf3 {[%emt 0:00:00]} e6 {[%emt 0:00:00]} 3. c3 {[%emt 0:00:00]} d5 {[%emt 0:00:04]} 4. e5 {[%emt 0:00:00]} Nc6 {[%emt 0:00:47]} 5. d4 {[%emt 0:00:00]} cxd4 {[%emt 0:02:24]} 6. cxd4 {[%emt 0:00:09]} Nge7 {[%emt 0:03:41]} 7. Nc3 {[%emt 0:11:34]} Nf5 {[%emt 0:09:29]} 8. a3 {[%emt 0:01:58]} Bd7 {[%emt 0:02:51]} 9. b4 {[%emt 0:07:07]} Rc8 {[%emt 0:04:16]} 10. Bb2 {[%emt 0:02:30]} Be7 {[%emt 0:07:16]} 11. Bd3 {[%emt 0:07:32]} g6 {[%emt 0:04:32]} 12. O-O {[%emt 0:01:45]} O-O {[%emt 0:01:13]} 13. Na4 {[%emt 0:09:51]} Nb8 {[%emt 0:01:42]} 14. Nc5 {[%emt 0:03:31]} b6 {[%emt 0:01:56]} 15. Nxd7 {[%emt 0:01:39]} Qxd7 {[%emt 0:01:29]} 16. Qb3 {[%emt 0:05:38]} a6 {[%emt 0:14:10]} 17. h3 {[%emt 0:06:33]} Qb7 {[%emt 0:04:42]} 18. Rac1 {[%emt 0:04:34]} b5 {[%emt 0:02:33]} 19. g4 {[%emt 0:03:38]} Ng7 {[%emt 0:00:32]} 20. Bc3 {[%emt 0:04:56]} f5 {[%emt 0:10:54]} 21. g5 {[%emt 0:02:12]} Ne8 {[%emt 0:05:06]} 22. Bd2 {[%emt 0:00:40]} Nc7 {[%emt 0:01:15]} 23. h4 {[%emt 0:00:49]} Kg7 {[%emt 0:02:07]} 24. Kg2 {[%emt 0:00:21]} Nd7 {[%emt 0:01:49]} 25. Rh1 {[%emt 0:01:43]} Nb6 {[%emt 0:00:35]} 26. Rh2 {[%emt 0:02:15]} Nc4 {[%emt 0:00:30]} 27. Rch1 {[%emt 0:00:05]} Rh8 {[%emt 0:00:33]} 28. Bc1 {[%emt 0:01:30]} Qa8 {[%emt 0:03:06]} 29. h5 {[%emt 0:00:56]} Rcg8 {[%emt 0:01:26]} 30. Be2 {[%emt 0:03:59]} Qd8 {[%emt 0:01:20]} 31. hxg6 {[%emt 0:01:55]} hxg6 {[%emt 0:00:26]} 32. Rh6 {[%emt 0:00:04]} Rxh6 {[%emt 0:01:57]} 33. Rxh6 {[%emt 0:01:38]} Rh8 {[%emt 0:00:31]} 34. Nh4 {[%emt 0:00:39]} Rxh6 {[%emt 0:01:32]} 35. gxh6+ {[%emt 0:00:01]} Kh7 {[%emt 0:00:40]} 36. Nxg6 {[%emt 0:00:21]} Bg5 {[%emt 0:01:57]} 37. Nf8+ {[%emt 0:01:25]} Qxf8 {[%emt 0:06:20]} 38. Bxg5 {[%emt 0:00:01]} Qg8 {[%emt 0:00:31]} 39. f4 {[%emt 0:00:04]} Nd2 {[%emt 0:02:14]} 40. Qc3 {[%emt 0:00:00]} Nc4 {[%emt 0:00:00]} 41. Kf2 {[%emt 0:10:53]} Qf7 {[%emt 0:02:52]} 42. Ke1 {[%emt 0:15:01]} Qe8 {[%emt 0:03:18]} 43. Qh3 {[%emt 0:03:04]} Qg8 {[%emt 0:03:07]} 44. Bh5 {[%emt 0:02:28]} Na8 {[%emt 0:04:19]} 45. Qc3 {[%emt 0:03:01]} Nab6 {[%emt 0:00:43]} 46. Kf2 {[%emt 0:00:17]} Na4 {[%emt 0:02:04]} 47. Qc1 {[%emt 0:00:19]} Nab2 {[%emt 0:00:46]} 48. Be2 {[%emt 0:01:25]} Qf7 {[%emt 0:01:53]} 49. Kg3 {[%emt 0:05:19]} Qa7 {[%emt 0:00:40]} 50. Qg1 {[%emt 0:01:54]} Nd2 {[%emt 0:05:27]} 51. Kh4 {[%emt 0:00:02]} Qf7 {[%emt 0:03:03]} 52. Bf6 {[%emt 0:00:14]} Qg6 {[%emt 0:00:52]} 53. Qxg6+ {[%emt 0:01:15]} Kxg6 {[%emt 0:00:01]} 54. Bg7 {[%emt 0:00:12]} Nbc4 {[%emt 0:01:31]} 55. Bh5+ {[%emt 0:00:31]} Kh7 {[%emt 0:00:02]} 56. Bf7 {[%emt 0:00:15]} Nf3+ {[%emt 0:04:34]} 57. Kh5 {[%emt 0:00:18]} Nxd4 {[%emt 0:00:30]} 58. Bg8+ {[%emt 0:00:53]} Kxg8 59. Kg6 1-0

[Event "EYCC Girls-U18 2019"]
[Site "Bratislava"]
[Date "2019.08.09"]
[Round "8.12"]
[White "Nestorovic, Katarina"]
[Black "Swiech, Joanna"]
[Result "0-1"]
[ECO "C24"]
[WhiteElo "2179"]
[BlackElo "2025"]
[Annotator "NA"]
[PlyCount "100"]
[EventDate "2019.08.02"]
[EventType "swiss"]
[EventCountry "SVK"]
[SourceTitle "playchess.com"]
[Source "ChessBase"]
[SourceQuality "1"]
[TimeControl "40/5400+30:1800+30"]

1. e4 {[%emt 0:00:00]} e5 {[%emt 0:00:00]} 2. Bc4 {[%emt 0:00:03]} Nf6 {[%emt 0:00:25]} 3. d3 {[%emt 0:00:10]} Nc6 {[%emt 0:00:22]} 4. Nc3 {[%emt 0:00:24]} Na5 {[%emt 0:01:00]} 5. Qf3 {[%emt 0:01:30]} c6 {[%emt 0:01:20]} 6. a3 {[%emt 0:01:48]} Nxc4 {[%emt 0:00:46]} 7. dxc4 {[%emt 0:00:05]} d6 {[%emt 0:00:17]} 8. Bg5 {[%emt 0:04:35]} Be7 {[%emt 0:00:52]} 9. Nge2 {[%emt 0:01:19]} Be6 {[%emt 0:01:12]} 10. Qd3 {[%emt 0:03:49]} Qc7 {[%emt 0:02:16]} 11. O-O {[%emt 0:04:39]} O-O {[%emt 0:01:13]} 12. b3 {[%emt 0:12:20]} Rad8 {[%emt 0:05:26]} 13. f4 {[%emt 0:02:05]} exf4 {[%emt 0:07:27]} 14. Bxf4 Nd7 {[%emt 0:12:08]} 15. Qg3 {[%emt 0:14:46]} Ne5 {[%emt 0:02:23]} 16. Nd4 {[%emt 0:00:52]} Ng6 {[%emt 0:02:24]} 17. Be3 {[%emt 0:05:01]} Bh4 {[%emt 0:07:01]} 18. Qf3 {[%emt 0:01:33]} Qe7 {[%emt 0:08:07]} 19. Nf5 {[%emt 0:05:12]} Bxf5 {[%emt 0:00:24]} 20. exf5 {[%emt 0:00:06]} Ne5 {[%emt 0:01:07]} 21. Qf4 {[%emt 0:06:57]} b6 {[%emt 0:09:27]} 22. Rad1 {[%emt 0:03:35]} h6 {[%emt 0:07:59]} 23. Ne4 {[%emt 0:09:42]} Bf6 {[%emt 0:03:46]} 24. Nxf6+ {[%emt 0:01:28]} Qxf6 {[%emt 0:00:09]} 25. Qg3 {[%emt 0:02:02]} Rfe8 {[%emt 0:02:07]} 26. Rd4 {[%emt 0:05:13]} c5 {[%emt 0:04:16]} 27. Rh4 {[%emt 0:02:26]} Kf8 {[%emt 0:00:17]} 28. Qh3 {[%emt 0:01:45]} Ke7 {[%emt 0:04:56]} 29. g4 {[%emt 0:03:02]} Kd7 {[%emt 0:01:56]} 30. Qg3 {[%emt 0:01:54]} Nc6 {[%emt 0:01:07]} 31. g5 {[%emt 0:02:32]} Qc3 {[%emt 0:01:40]} 32. Bf4 {[%emt 0:02:09]} Qxg3+ {[%emt 0:01:16]} 33. hxg3 {[%emt 0:00:22]} hxg5 {[%emt 0:00:08]} 34. Bxg5 {[%emt 0:00:25]} f6 {[%emt 0:00:07]} 35. Bf4 {[%emt 0:00:50]} Kc7 {[%emt 0:01:47]} 36. Rh7 {[%emt 0:01:30]} Rd7 {[%emt 0:00:07]} 37. g4 {[%emt 0:01:42]} Nd4 {[%emt 0:03:30]} 38. Rf2 {[%emt 0:00:29]} Re4 {[%emt 0:00:37]} 39. Kg2 {[%emt 0:00:34]} Rde7 {[%emt 0:02:38]} 40. a4 {[%emt 0:00:00]} Ne2 {[%emt 0:00:00]} 41. Bh2 {[%emt 0:17:06]} Rxg4+ {[%emt 0:03:05]} 42. Kh3 {[%emt 0:04:23]} Rg5 {[%emt 0:05:09]} 43. c3 {[%emt 0:03:27]} Re3+ {[%emt 0:05:23]} 44. Kh4 {[%emt 0:00:28]} Re4+ {[%emt 0:01:59]} 45. Kh3 {[%emt 0:00:25]} Re3+ {[%emt 0:04:13]} 46. Kh4 {[%emt 0:00:06]} Ng1 {[%emt 0:01:49]} 47. Bxg1 {[%emt 0:00:51]} Rxg1 {[%emt 0:00:11]} 48. Rh2 {[%emt 0:00:50]} Rxc3 {[%emt 0:01:52]} 49. Rh5 {[%emt 0:01:38]} Rxb3 {[%emt 0:01:27]} 50. Rh3 {[%emt 0:00:23]} Rb2 {[%emt 0:03:47]} 0-1

[Event "EYCC Girls-U18 2019"]
[Site "Bratislava"]
[Date "2019.08.09"]
[Round "8.13"]
[White "Nastase, Andreea-Cristina"]
[Black "Ziegenfuss, Antonia"]
[Result "1/2-1/2"]
[ECO "B29"]
[WhiteElo "1948"]
[BlackElo "2063"]
[Annotator "NA"]
[PlyCount "108"]
[EventDate "2019.08.02"]
[EventType "swiss"]
[EventCountry "SVK"]
[SourceTitle "playchess.com"]
[Source "ChessBase"]
[SourceQuality "1"]
[TimeControl "40/5400+30:1800+30"]

1. e4 {[%emt 0:00:00]} c5 {[%emt 0:00:00]} 2. Nf3 {[%emt 0:00:00]} Nf6 {[%emt 0:00:00]} 3. e5 {[%emt 0:01:32]} Nd5 {[%emt 0:00:00]} 4. g3 {[%emt 0:00:17]} Nc6 {[%emt 0:03:39]} 5. Bg2 {[%emt 0:00:35]} d6 {[%emt 0:04:23]} 6. d4 {[%emt 0:15:40]} e6 {[%emt 0:07:41]} 7. O-O {[%emt 0:05:01]} dxe5 {[%emt 0:14:20]} 8. dxe5 {[%emt 0:03:31]} Be7 {[%emt 0:06:00]} 9. Qe2 {[%emt 0:08:20]} Qc7 {[%emt 0:09:55]} 10. Rd1 {[%emt 0:04:21]} Bd7 {[%emt 0:03:03]} 11. c4 {[%emt 0:03:35]} Nb6 {[%emt 0:03:44]} 12. Nc3 {[%emt 0:01:45]} a6 {[%emt 0:03:35]} 13. Bf4 {[%emt 0:01:32]} O-O-O {[%emt 0:06:08]} 14. Ne4 {[%emt 0:04:45]} Kb8 {[%emt 0:07:04]} 15. Nd6 {[%emt 0:03:26]} Rdf8 {[%emt 0:03:43]} 16. a3 {[%emt 0:08:59]} Bxd6 {[%emt 0:07:56]} 17. exd6 {[%emt 0:05:32]} Qd8 {[%emt 0:02:06]} 18. Be3 {[%emt 0:01:25]} Na5 {[%emt 0:01:44]} 19. Bxc5 {[%emt 0:09:39]} Naxc4 {[%emt 0:01:15]} 20. b3 {[%emt 0:02:24]} Na5 {[%emt 0:00:21]} 21. Ne5 {[%emt 0:01:03]} Bb5 {[%emt 0:04:42]} 22. Qxb5 {[%emt 0:04:40]} axb5 {[%emt 0:00:04]} 23. Bxb6 {[%emt 0:00:04]} Qxb6 {[%emt 0:00:14]} 24. Nd7+ {[%emt 0:00:03]} Ka7 {[%emt 0:00:05]} 25. Nxb6 {[%emt 0:00:14]} Kxb6 {[%emt 0:00:05]} 26. Rd3 {[%emt 0:02:20]} Rd8 {[%emt 0:01:38]} 27. d7 {[%emt 0:01:42]} Nc6 {[%emt 0:03:33]} 28. Rc1 {[%emt 0:03:11]} Kc7 {[%emt 0:02:21]} 29. Bxc6 {[%emt 0:00:43]} bxc6 {[%emt 0:00:05]} 30. Rdc3 {[%emt 0:00:02]} Rxd7 {[%emt 0:00:31]} 31. Rxc6+ {[%emt 0:00:03]} Kb7 {[%emt 0:00:09]} 32. R6c5 {[%emt 0:00:08]} Kb6 {[%emt 0:00:19]} 33. Rg5 {[%emt 0:03:20]} f6 {[%emt 0:01:09]} 34. Rg4 {[%emt 0:00:28]} Rhd8 {[%emt 0:01:16]} 35. Kg2 {[%emt 0:01:29]} g5 {[%emt 0:01:40]} 36. a4 {[%emt 0:00:38]} Rd4 {[%emt 0:02:03]} 37. Rxd4 {[%emt 0:00:08]} Rxd4 {[%emt 0:00:04]} 38. axb5 {[%emt 0:00:02]} Rd6 {[%emt 0:01:00]} 39. Rc8 {[%emt 0:03:56]} Kxb5 {[%emt 0:00:23]} 40. Rf8 {[%emt 0:00:00]} e5 {[%emt 0:00:00]} 41. Rf7 {[%emt 0:00:40]} h6 {[%emt 0:03:37]} 42. Kf3 {[%emt 0:11:36]} h5 {[%emt 0:06:41]} 43. Rb7+ {[%emt 0:04:25]} Kc6 {[%emt 0:01:59]} 44. Rb8 {[%emt 0:00:36]} Kc7 {[%emt 0:04:22]} 45. Rb4 {[%emt 0:00:06]} Kd7 {[%emt 0:00:43]} 46. Ke3 {[%emt 0:01:23]} f5 {[%emt 0:07:05]} 47. Rb7+ {[%emt 0:00:14]} Ke6 {[%emt 0:02:21]} 48. Rh7 {[%emt 0:00:38]} f4+ {[%emt 0:01:39]} 49. gxf4 {[%emt 0:00:20]} gxf4+ {[%emt 0:00:11]} 50. Ke2 {[%emt 0:00:13]} Kd5 {[%emt 0:01:58]} 51. Rxh5 {[%emt 0:03:58]} Rb6 {[%emt 0:00:11]} 52. Rh3 {[%emt 0:02:09]} e4 {[%emt 0:01:46]} 53. f3 {[%emt 0:05:23]} exf3+ {[%emt 0:00:59]} 54. Rxf3 {[%emt 0:00:04]} Rh6 {[%emt 0:00:28]} 1/2-1/2